[Event "Austrian Women Bundesliga 2023-24"]
[Site "Austria"]
[Date "2024.03.22"]
[Round "4.9"]
[White "Teuschler, Barbara"]
[Black "Katter, Katharina"]
[Result "0-1"]
[ECO "B94"]
[WhiteElo "2048"]
[BlackElo "1932"]
[Annotator "RC"]
[PlyCount "88"]
[EventDate "2023.11.21"]
[EventType "team-tourn"]
[EventCountry "AUT"]
[SourceTitle "playchess.com"]
[Source "ChessBase"]
[SourceQuality "1"]
[TimeControl "40/5400+30:1800+30"]

1. e4 {[%emt 0:00:02]} c5 {[%emt 0:00:14]} 2. Nf3 {[%emt 0:00:03]} d6 {[%emt 0:00:16]} 3. d4 {[%emt 0:00:03]} cxd4 {[%emt 0:00:16]} 4. Nxd4 {[%emt 0:00:03]} Nf6 {[%emt 0:00:23]} 5. Nc3 {[%emt 0:00:05]} a6 {[%emt 0:00:16]} 6. Bg5 {[%emt 0:00:05]} Nbd7 {[%emt 0:00:22]} 7. Bc4 {[%emt 0:00:06]} e6 {[%emt 0:00:37]} 8. Qe2 {[%emt 0:00:11]} b5 {[%emt 0:00:35]} 9. Bb3 {[%emt 0:00:06]} Bb7 {[%emt 0:02:20]} 10. O-O-O {[%emt 0:00:44]} b4 {[%emt 0:06:45]} 11. Na4 {[%emt 0:00:39]} Be7 {[%emt 0:04:05]} 12. f3 {[%emt 0:11:29]} O-O {[%emt 0:02:02]} 13. h4 {[%emt 0:00:31]} Qc7 {[%emt 0:09:22]} 14. Kb1 {[%emt 0:17:14]} Rfe8 {[%emt 0:09:50]} 15. Rhe1 {[%emt 0:05:09]} Nc5 {[%emt 0:10:26]} 16. Qf2 {[%emt 0:12:04]} Rac8 {[%emt 0:14:20]} 17. Ne2 {[%emt 0:15:13]} d5 {[%emt 0:11:22]} 18. e5 {[%emt 0:01:02]} Nxb3 {[%emt 0:00:59]} 19. cxb3 {[%emt 0:00:19]} Qxe5 {[%emt 0:01:36]} 20. g4 {[%emt 0:06:10]} Qb8 {[%emt 0:03:04]} 21. Nd4 {[%emt 0:01:20]} Bc6 {[%emt 0:04:34]} 22. Qd2 {[%emt 0:05:34]} Bd7 {[%emt 0:03:16]} 23. Bf4 {[%emt 0:00:49]} Bd6 {[%emt 0:00:18]} 24. Bg5 {[%emt 0:00:03]} Be7 {[%emt 0:01:07]} 25. Bf4 {[%emt 0:00:05]} Bd6 {[%emt 0:00:04]} 26. Bg5 {[%emt 0:00:04]} Bxa4 {[%emt 0:03:01]} 27. bxa4 {[%emt 0:00:24]} Nd7 {[%emt 0:01:09]} 28. h5 {[%emt 0:02:48]} b3 {[%emt 0:01:41]} 29. Rf1 {[%emt 0:09:44]} bxa2+ {[%emt 0:01:27]} 30. Kxa2 {[%emt 0:00:01]} Ne5 {[%emt 0:01:37]} 31. b3 {[%emt 0:00:32]} Qb6 {[%emt 0:01:35]} 32. h6 {[%emt 0:00:32]} Qc5 {[%emt 0:00:49]} 33. Qb2 {[%emt 0:00:05]} Qc3 {[%emt 0:03:10]} 34. hxg7 {[%emt 0:01:25]} Qxb2+ {[%emt 0:00:34]} 35. Kxb2 {[%emt 0:00:01]} Kxg7 {[%emt 0:00:23]} 36. Rh1 {[%emt 0:00:08]} Bb4 {[%emt 0:00:51]} 37. Rh3 {[%emt 0:01:35]} Bc3+ {[%emt 0:00:31]} 38. Ka3 {[%emt 0:00:01]} Bxd4 {[%emt 0:00:52]} 39. Rxd4 {[%emt 0:00:01]} f6 {[%emt 0:02:12]} 40. Bd2 {[%emt 0:01:17]} Rc2 {[%emt 0:01:11]} 41. Bh6+ {[%emt 0:33:57]} Kg6 {[%emt 0:03:04]} 42. Rb4 {[%emt 0:00:00]} Nf7 {[%emt 0:03:40]} 43. Be3 {[%emt 0:00:00]} e5 {[%emt 0:01:15]} 44. Rb6 {[%emt 0:00:00]} d4 {[%emt 0:00:42]} 0-1

[Event "Austrian Women Bundesliga 2023-24"]
[Site "Austria"]
[Date "2024.03.22"]
[Round "4.10"]
[White "Batyte, Daiva"]
[Black "Mandukhai, Myagmarsuren"]
[Result "0-1"]
[ECO "D47"]
[WhiteElo "2046"]
[BlackElo "2083"]
[Annotator "RC"]
[PlyCount "62"]
[EventDate "2023.11.21"]
[EventType "team-tourn"]
[EventCountry "AUT"]
[SourceTitle "playchess.com"]
[Source "ChessBase"]
[SourceQuality "1"]
[TimeControl "40/5400+30:1800+30"]

1. d4 {[%emt 0:00:02]} d5 {[%emt 0:00:26]} 2. c4 {[%emt 0:00:47]} c6 {[%emt 0:00:03]} 3. Nc3 {[%emt 0:01:35]} Nf6 {[%emt 0:00:08]} 4. Nf3 {[%emt 0:00:48]} e6 {[%emt 0:00:09]} 5. e3 {[%emt 0:01:16]} Nbd7 {[%emt 0:00:12]} 6. Bd3 {[%emt 0:01:19]} dxc4 {[%emt 0:01:08]} 7. Bxc4 {[%emt 0:00:25]} b5 {[%emt 0:00:11]} 8. Bd3 {[%emt 0:00:39]} Bd6 {[%emt 0:00:10]} 9. e4 {[%emt 0:03:41]} e5 {[%emt 0:00:13]} 10. d5 {[%emt 0:04:36]} cxd5 {[%emt 0:03:13]} 11. Nxd5 {[%emt 0:08:26]} Nxd5 {[%emt 0:08:40]} 12. exd5 {[%emt 0:00:10]} h6 {[%emt 0:11:39]} 13. O-O {[%emt 0:01:07]} a6 {[%emt 0:00:38]} 14. a4 {[%emt 0:11:08]} O-O {[%emt 0:14:28]} 15. axb5 {[%emt 0:04:25]} f5 {[%emt 0:00:53]} 16. Bc4 {[%emt 0:01:43]} axb5 {[%emt 0:17:26]} 17. Rxa8 {[%emt 0:06:59]} bxc4 {[%emt 0:00:08]} 18. Re1 {[%emt 0:03:14]} Qc7 {[%emt 0:05:31]} 19. h3 {[%emt 0:07:51]} Nc5 {[%emt 0:08:44]} 20. Ra3 {[%emt 0:05:40]} Nd3 {[%emt 0:01:18]} 21. Rc3 {[%emt 0:02:04]} e4 {[%emt 0:01:24]} 22. Nd2 {[%emt 0:05:51]} Bh2+ {[%emt 0:05:57]} 23. Kf1 {[%emt 0:00:12]} Qa7 {[%emt 0:00:11]} 24. Re2 {[%emt 0:01:58]} f4 {[%emt 0:00:56]} 25. Nxe4 {[%emt 0:03:34]} Qd7 {[%emt 0:07:43]} 26. d6 {[%emt 0:03:18]} Qxh3 {[%emt 0:06:53]} 27. Re3 {[%emt 0:02:27]} fxe3 {[%emt 0:01:21]} 28. Rxd3 {[%emt 0:01:06]} cxd3 {[%emt 0:00:22]} 29. Qxd3 {[%emt 0:02:10]} Qe6 {[%emt 0:01:18]} 30. Bxe3 {[%emt 0:00:25]} Qa2 {[%emt 0:01:42]} 31. d7 {[%emt 0:00:37]} Ba6 {[%emt 0:00:10]} 0-1

[Event "Austrian Women Bundesliga 2023-24"]
[Site "Austria"]
[Date "2024.03.22"]
[Round "4.11"]
[White "Deak-Sala, Emilia"]
[Black "Katter, Marlene"]
[Result "1-0"]
[ECO "A08"]
[WhiteElo "2014"]
[BlackElo "1902"]
[Annotator "RC"]
[PlyCount "103"]
[EventDate "2023.11.21"]
[EventType "team-tourn"]
[EventCountry "AUT"]
[SourceTitle "playchess.com"]
[Source "ChessBase"]
[SourceQuality "1"]
[TimeControl "40/5400+30:1800+30"]

1. Nf3 {[%emt 0:00:11]} Nf6 {[%emt 0:00:58]} 2. g3 {[%emt 0:00:06]} d5 {[%emt 0:01:20]} 3. Bg2 {[%emt 0:00:46]} e6 {[%emt 0:01:23]} 4. O-O {[%emt 0:00:12]} Be7 {[%emt 0:02:35]} 5. d3 {[%emt 0:00:28]} O-O {[%emt 0:04:26]} 6. Nbd2 {[%emt 0:01:09]} c5 {[%emt 0:07:23]} 7. e4 {[%emt 0:00:17]} Nc6 {[%emt 0:01:23]} 8. Re1 {[%emt 0:00:11]} Qc7 {[%emt 0:03:23]} 9. Nf1 {[%emt 0:00:31]} Re8 {[%emt 0:19:00]} 10. e5 {[%emt 0:00:20]} Nd7 {[%emt 0:00:38]} 11. Bf4 {[%emt 0:00:12]} b5 {[%emt 0:05:28]} 12. h4 {[%emt 0:00:09]} Qd8 {[%emt 0:10:31]} 13. Bh3 {[%emt 0:15:30]} Nf8 {[%emt 0:03:00]} 14. h5 {[%emt 0:05:08]} h6 {[%emt 0:04:34]} 15. N1h2 {[%emt 0:00:59]} Nh7 {[%emt 0:00:45]} 16. Bf1 {[%emt 0:24:45]} Ba6 {[%emt 0:06:00]} 17. d4 {[%emt 0:06:47]} c4 {[%emt 0:02:58]} 18. a3 {[%emt 0:01:30]} Rb8 {[%emt 0:04:04]} 19. c3 {[%emt 0:00:42]} Na5 {[%emt 0:02:19]} 20. Be2 {[%emt 0:01:32]} Bc8 {[%emt 0:01:24]} 21. Rb1 {[%emt 0:05:20]} Nb3 {[%emt 0:01:51]} 22. Nd2 {[%emt 0:00:14]} Nxd2 {[%emt 0:02:29]} 23. Qxd2 {[%emt 0:00:07]} a6 {[%emt 0:02:46]} 24. Bd1 {[%emt 0:00:09]} Bd7 {[%emt 0:00:57]} 25. Bc2 {[%emt 0:02:44]} Bg5 {[%emt 0:03:30]} 26. Bxg5 {[%emt 0:05:05]} Qxg5 {[%emt 0:02:35]} 27. Qe2 {[%emt 0:00:18]} Rf8 {[%emt 0:00:36]} 28. Kg2 {[%emt 0:02:10]} f5 {[%emt 0:01:15]} 29. f4 {[%emt 0:01:47]} Qe7 {[%emt 0:00:57]} 30. Rg1 {[%emt 0:04:45]} Rb6 {[%emt 0:01:38]} 31. Kh1 {[%emt 0:04:05]} Rf7 {[%emt 0:01:27]} 32. g4 {[%emt 0:03:29]} Qh4 {[%emt 0:01:43]} 33. Rbf1 {[%emt 0:02:57]} Kh8 {[%emt 0:00:41]} 34. Rg2 {[%emt 0:01:11]} Bc8 {[%emt 0:00:36]} 35. Kg1 {[%emt 0:01:31]} Qd8 {[%emt 0:00:28]} 36. Qf2 {[%emt 0:01:55]} Rbb7 {[%emt 0:00:25]} 37. Qg3 {[%emt 0:00:47]} fxg4 {[%emt 0:00:36]} 38. Nxg4 {[%emt 0:01:07]} Qf8 {[%emt 0:00:47]} 39. Ne3 {[%emt 0:05:44]} a5 {[%emt 0:00:26]} 40. Qg6 {[%emt 0:01:01]} Qg8 {[%emt 0:00:24]} 41. Qg3 {[%emt 0:31:31]} Qd8 {[%emt 0:05:57]} 42. Kh1 {[%emt 0:00:00]} Rb8 {[%emt 0:10:25]} 43. Rfg1 {[%emt 0:00:00]} Qf8 {[%emt 0:01:59]} 44. Qg6 {[%emt 0:00:00]} Qg8 {[%emt 0:03:38]} 45. Qxh6 {[%emt 0:00:00]} Bd7 {[%emt 0:00:51]} 46. Qxh7+ {[%emt 0:00:00]} Qxh7 {[%emt 0:00:23]} 47. Bxh7 {[%emt 0:00:00]} Kxh7 {[%emt 0:00:02]} 48. Kh2 {[%emt 0:00:00]} Rbf8 {[%emt 0:06:43]} 49. Rg3 {[%emt 0:01:34]} Re7 {[%emt 0:02:06]} 50. h6 {[%emt 0:01:23]} gxh6 {[%emt 0:01:06]} 51. Ng4 {[%emt 0:00:04]} Kh8 {[%emt 0:02:00]} 52. Nf6 {[%emt 0:00:17]} 1-0

[Event "Austrian Women Bundesliga 2023-24"]
[Site "Austria"]
[Date "2024.03.22"]
[Round "4.12"]
[White "Zoehrer, Sarah"]
[Black "Bakalarz, Grazyna"]
[Result "1/2-1/2"]
[ECO "D00"]
[WhiteElo "1801"]
[BlackElo "1923"]
[Annotator "RC"]
[PlyCount "69"]
[EventDate "2023.11.21"]
[EventType "team-tourn"]
[EventCountry "AUT"]
[SourceTitle "playchess.com"]
[Source "ChessBase"]
[SourceQuality "1"]
[TimeControl "40/5400+30:1800+30"]

1. d4 {[%emt 0:00:07]} d5 {[%emt 0:00:17]} 2. Bf4 {[%emt 0:00:59]} Bf5 {[%emt 0:00:09]} 3. Nf3 {[%emt 0:00:14]} e6 {[%emt 0:00:14]} 4. e3 {[%emt 0:00:25]} Bd6 {[%emt 0:00:33]} 5. Bg3 {[%emt 0:00:26]} Nf6 {[%emt 0:02:12]} 6. c4 {[%emt 0:00:47]} Bxb1 {[%emt 0:09:16]} 7. Rxb1 {[%emt 0:01:18]} Bb4+ {[%emt 0:00:14]} 8. Ke2 {[%emt 0:04:00]} Bd6 {[%emt 0:06:18]} 9. c5 {[%emt 0:01:59]} Bxg3 {[%emt 0:02:03]} 10. hxg3 {[%emt 0:00:08]} Nbd7 {[%emt 0:01:41]} 11. Ke1 {[%emt 0:04:36]} c6 {[%emt 0:02:18]} 12. Bd3 {[%emt 0:00:39]} b5 {[%emt 0:13:19]} 13. b4 {[%emt 0:01:24]} a5 {[%emt 0:00:47]} 14. a3 {[%emt 0:00:50]} axb4 {[%emt 0:02:57]} 15. axb4 {[%emt 0:00:16]} Ra2 {[%emt 0:06:20]} 16. Ne5 {[%emt 0:03:41]} Qa8 {[%emt 0:01:39]} 17. Rh4 {[%emt 0:15:37]} h6 {[%emt 0:03:58]} 18. g4 {[%emt 0:09:31]} Nxe5 {[%emt 0:05:37]} 19. dxe5 {[%emt 0:00:32]} Nd7 {[%emt 0:02:13]} 20. f4 {[%emt 0:06:19]} Rxg2 {[%emt 0:05:25]} 21. Be2 {[%emt 0:01:15]} Rg1+ {[%emt 0:04:29]} 22. Bf1 {[%emt 0:00:28]} Qa2 {[%emt 0:09:32]} 23. Ra1 {[%emt 0:02:14]} Qg2 {[%emt 0:13:28]} 24. Qe2 {[%emt 0:01:18]} Qg3+ {[%emt 0:00:19]} 25. Qf2 {[%emt 0:00:22]} O-O {[%emt 0:03:34]} 26. Qxg3 {[%emt 0:01:46]} Rxg3 {[%emt 0:00:02]} 27. Kf2 g5 {[%emt 0:00:04]} 28. Kxg3 {[%emt 0:04:39]} gxh4+ {[%emt 0:00:02]} 29. Kxh4 {[%emt 0:00:05]} f6 {[%emt 0:00:30]} 30. exf6 {[%emt 0:02:20]} Rxf6 {[%emt 0:01:39]} 31. Ra8+ {[%emt 0:00:42]} Kf7 {[%emt 0:01:33]} 32. Rc8 {[%emt 0:02:02]} e5 {[%emt 0:00:19]} 33. f5 {[%emt 0:00:08]} e4 {[%emt 0:01:02]} 34. Kh5 {[%emt 0:03:20]} Ne5 {[%emt 0:00:40]} 35. Rc7+ {[%emt 0:00:17]} 1/2-1/2

[Event "Austrian Women Bundesliga 2023-24"]
[Site "Austria"]
[Date "2024.03.22"]
[Round "4.13"]
[White "Terbe, Julianna"]
[Black "Berke, Ana"]
[Result "1/2-1/2"]
[ECO "A33"]
[WhiteElo "2289"]
[BlackElo "2066"]
[Annotator "TA"]
[PlyCount "61"]
[EventDate "2023.11.21"]
[EventType "team-tourn"]
[EventCountry "AUT"]
[SourceTitle "playchess.com"]
[Source "ChessBase"]
[SourceQuality "1"]
[TimeControl "40/5400+30:1800+30"]

{[%evp 18,61,4,0,0,0,0,0,-5,0,0,0,0,-6,18,-44,-48,-64,-64,-53,-54,-71,-71,-75,-21,-49,-32,-39,0,-7,0,0,0,0,0,0,0,0,0,0,0,0,0,0,0,0]} 1. Nf3 {[%emt 0:00:04]} c5 {[%emt 0:00:17]} 2. c4 {[%emt 0:00:08]} Nc6 {[%emt 0:00:06]} 3. d4 {[%emt 0:00:07]} cxd4 {[%emt 0:00:28]} 4. Nxd4 {[%emt 0:00:07]} Nf6 {[%emt 0:00:57]} 5. Nc3 {[%emt 0:00:16]} e6 {[%emt 0:00:28]} 6. e4 {[%emt 0:04:34]} Bb4 {[%emt 0:01:11]} 7. Nxc6 {[%emt 0:00:08]} bxc6 {[%emt 0:00:50]} 8. Bd3 {[%emt 0:00:07]} e5 {[%emt 0:00:25]} 9. O-O {[%emt 0:00:05]} O-O {[%emt 0:04:29]} 10. Qc2 {[%emt 0:00:39]} Bc5 {[%emt 0:02:16]} 11. a3 {[%emt 0:00:15]} a5 {[%emt 0:02:13]} 12. Rb1 {[%emt 0:00:06]} Rb8 {[%emt 0:03:54]} 13. Na4 {[%emt 0:06:11]} Bd4 {[%emt 0:01:46]} 14. b4 {[%emt 0:00:13]} axb4 {[%emt 0:01:38]} 15. axb4 {[%emt 0:00:05]} d5 {[%emt 0:05:09]} 16. cxd5 {[%emt 0:32:02]} ({White should play} 16. exd5 $11 cxd5 17. c5) 16... cxd5 $15 {[%emt 0:01:36]} 17. Bg5 {[%emt 0:08:30]} dxe4 {[%emt 0:07:10]} 18. Bxe4 {[%emt 0:00:06]} h6 {[%emt 0:01:17]} 19. Bxf6 {[%emt 0:00:38]} Qxf6 {[%emt 0:00:51]} 20. Nc3 {[%emt 0:00:56]} Bb7 {[%emt 0:04:22]} (20... Bd7 $17 {Black wants to play ...Rbc8.} 21. Nd5 Qg5) 21. Bxb7 {[%emt 0:06:11]} Rxb7 {[%emt 0:02:04]} 22. Ne2 {[%emt 0:00:05]} Qd6 {[%emt 0:07:07]} 23. b5 {[%emt 0:07:07] The position is equal.} Rfb8 {[%emt 0:03:11]} (23... Ba7 {with more complications.} 24. Rfd1 Qg6 25. Qc6 Rfb8) 24. Nxd4 {[%emt 0:00:18]} exd4 {[%emt 0:01:20]} 25. Qd3 {[%emt 0:00:08]} g6 {[%emt 0:06:24]} 26. g3 {[%emt 0:04:06]} h5 {[%emt 0:01:09]} 27. Rfd1 {[%emt 0:01:17]} Kg7 {[%emt 0:08:12]} 28. Qxd4+ {[%emt 0:02:21]} Qxd4 {[%emt 0:00:12]} 29. Rxd4 {[%emt 0:00:03]} Rxb5 {[%emt 0:00:08]} 30. Rxb5 {[%emt 0:00:03]} Rxb5 {[%emt 0:00:03]} 31. Kg2 {[%emt 0:00:05] Weighted Error Value: White=0.09 (flawless) /Black=0.10 (very precise) .  Mistake:       	White=1     	Black=1      Inaccurate:     	White=1     	Black=1      OK:         	White=8     	Black=4      Best:        	White=1     	Black=2} 1/2-1/2

[Event "Austrian Women Bundesliga 2023-24"]
[Site "Austria"]
[Date "2024.03.22"]
[Round "4.14"]
[White "Kopinits, Anna-Christina"]
[Black "Terbe, Zsuzsanna"]
[Result "1/2-1/2"]
[ECO "D00"]
[WhiteElo "2170"]
[BlackElo "2178"]
[Annotator "RC"]
[PlyCount "90"]
[EventDate "2023.11.21"]
[EventType "team-tourn"]
[EventCountry "AUT"]
[SourceTitle "playchess.com"]
[Source "ChessBase"]
[SourceQuality "1"]
[TimeControl "40/5400+30:1800+30"]

1. d4 {[%emt 0:00:04]} d5 {[%emt 0:00:08]} 2. Bf4 {[%emt 0:00:05]} Nf6 {[%emt 0:00:15]} 3. e3 {[%emt 0:00:07]} c5 {[%emt 0:00:13]} 4. c3 {[%emt 0:00:08]} Nc6 {[%emt 0:00:23]} 5. Nd2 {[%emt 0:00:06]} e6 {[%emt 0:00:55]} 6. Ngf3 {[%emt 0:01:48]} Nh5 {[%emt 0:01:10]} 7. Be5 {[%emt 0:03:17]} f6 {[%emt 0:00:29]} 8. Nh4 {[%emt 0:06:07]} g6 {[%emt 0:02:37]} 9. Bg3 {[%emt 0:03:36]} cxd4 {[%emt 0:07:36]} 10. exd4 {[%emt 0:02:51]} Bd6 {[%emt 0:12:24]} 11. Bd3 {[%emt 0:06:01]} Ng7 {[%emt 0:08:54]} 12. O-O {[%emt 0:15:10]} O-O {[%emt 0:02:46]} 13. Re1 {[%emt 0:03:53]} Bxg3 {[%emt 0:04:13]} 14. hxg3 {[%emt 0:00:26]} e5 {[%emt 0:00:29]} 15. dxe5 {[%emt 0:03:20]} fxe5 {[%emt 0:00:31]} 16. c4 {[%emt 0:01:37]} Be6 {[%emt 0:30:02]} 17. cxd5 {[%emt 0:03:32]} Bxd5 {[%emt 0:00:12]} 18. Bc4 {[%emt 0:06:52]} Bxc4 {[%emt 0:06:43]} 19. Nxc4 {[%emt 0:00:07]} Qd4 {[%emt 0:00:10]} 20. Qe2 {[%emt 0:09:43]} b5 {[%emt 0:01:43]} 21. Nxe5 {[%emt 0:03:36]} Nxe5 {[%emt 0:01:21]} 22. Qxe5 {[%emt 0:00:06]} Qxf2+ {[%emt 0:00:19]} 23. Kh2 {[%emt 0:00:05]} a6 {[%emt 0:05:31]} 24. Rf1 {[%emt 0:05:18]} Qb6 {[%emt 0:01:25]} 25. Rxf8+ {[%emt 0:03:37]} Rxf8 {[%emt 0:00:17]} 26. Rc1 {[%emt 0:02:11]} Re8 {[%emt 0:02:25]} 27. Qd5+ {[%emt 0:00:10]} Qe6 {[%emt 0:00:12]} 28. Qb7 {[%emt 0:01:03]} Nh5 {[%emt 0:04:11]} 29. Nf3 {[%emt 0:08:48]} Nf6 {[%emt 0:03:29]} 30. Kh1 {[%emt 0:04:00]} Ng4 {[%emt 0:01:33]} 31. Qc6 {[%emt 0:03:52]} Qxc6 {[%emt 0:00:59]} 32. Rxc6 {[%emt 0:00:04]} Re2 {[%emt 0:00:28]} 33. Rxa6 {[%emt 0:03:52]} Rxb2 {[%emt 0:00:14]} 34. a4 {[%emt 0:00:05]} bxa4 {[%emt 0:01:44]} 35. Rxa4 {[%emt 0:00:05]} Rb1+ {[%emt 0:00:40]} 36. Ng1 {[%emt 0:00:06]} h5 {[%emt 0:00:12]} 37. Ra7 {[%emt 0:00:46]} Rc1 {[%emt 0:00:05]} 38. Rb7 {[%emt 0:00:13]} Nf2+ {[%emt 0:01:38]} 39. Kh2 {[%emt 0:00:05]} Ng4+ {[%emt 0:00:04]} 40. Kh1 {[%emt 0:00:03]} Kf8 {[%emt 0:01:01]} 41. Ra7 {[%emt 0:30:11]} Ne3 {[%emt 0:10:19]} 42. Ra3 {[%emt 0:00:00]} Nf1 {[%emt 0:01:11]} 43. Nf3 {[%emt 0:00:00]} Nxg3+ {[%emt 0:02:51]} 44. Kh2 {[%emt 0:00:00]} Nf5 {[%emt 0:03:10]} 45. Ne5 {[%emt 0:00:00]} Kg7 {[%emt 0:02:44]} 1/2-1/2

[Event "Austrian Women Bundesliga 2023-24"]
[Site "Austria"]
[Date "2024.03.22"]
[Round "4.15"]
[White "Karacsonyi, Kata"]
[Black "Kushka, Alena"]
[Result "1-0"]
[ECO "B38"]
[WhiteElo "2137"]
[BlackElo "2146"]
[Annotator "RC"]
[PlyCount "106"]
[EventDate "2023.11.21"]
[EventType "team-tourn"]
[EventCountry "AUT"]
[SourceTitle "playchess.com"]
[Source "ChessBase"]
[SourceQuality "1"]
[TimeControl "40/5400+30:1800+30"]

1. e4 {[%emt 0:00:07]} c5 {[%emt 0:00:07]} 2. Nf3 {[%emt 0:00:06]} Nc6 {[%emt 0:00:06]} 3. d4 {[%emt 0:00:16]} cxd4 {[%emt 0:00:07]} 4. Nxd4 {[%emt 0:00:04]} g6 {[%emt 0:00:08]} 5. c4 {[%emt 0:00:26]} Bg7 {[%emt 0:00:14]} 6. Be3 {[%emt 0:00:10]} Qb6 {[%emt 0:00:19]} 7. Nb5 {[%emt 0:12:55]} Qa5+ {[%emt 0:00:11]} 8. N1c3 {[%emt 0:00:21]} Nf6 {[%emt 0:01:38]} 9. f3 {[%emt 0:10:08]} O-O {[%emt 0:04:31]} 10. Qd2 {[%emt 0:04:36]} d6 {[%emt 0:04:46]} 11. Nd5 {[%emt 0:12:29]} Qxd2+ {[%emt 0:03:55]} 12. Kxd2 {[%emt 0:01:07]} Bd7 {[%emt 0:08:55]} 13. Rb1 {[%emt 0:06:48]} Rfc8 {[%emt 0:17:49]} 14. b4 {[%emt 0:07:28]} Nxd5 {[%emt 0:01:43]} 15. cxd5 {[%emt 0:06:34]} Ne5 {[%emt 0:05:24]} 16. Nxa7 {[%emt 0:05:08]} Rxa7 {[%emt 0:02:01]} 17. Bxa7 {[%emt 0:00:11]} Ra8 {[%emt 0:00:12]} 18. Bd4 {[%emt 0:05:39]} Nxf3+ {[%emt 0:14:31]} 19. gxf3 {[%emt 0:00:10]} Bxd4 {[%emt 0:00:15]} 20. Bc4 {[%emt 0:02:36]} b5 {[%emt 0:05:29]} 21. Bb3 {[%emt 0:01:06]} f5 {[%emt 0:03:49]} 22. Kd3 {[%emt 0:01:59]} Bb6 {[%emt 0:03:20]} 23. h4 {[%emt 0:07:10]} Kf7 {[%emt 0:02:52]} 24. Rh2 {[%emt 0:04:29]} Kf6 {[%emt 0:05:16]} 25. a4 {[%emt 0:04:16]} bxa4 {[%emt 0:00:36]} 26. Ra2 {[%emt 0:00:52]} fxe4+ {[%emt 0:01:24]} 27. fxe4 {[%emt 0:00:06]} Ke5 {[%emt 0:00:42]} 28. Rba1 {[%emt 0:03:39]} Bd4 {[%emt 0:02:17]} 29. Rc1 {[%emt 0:03:14]} Ra7 {[%emt 0:00:27]} 30. Bc4 {[%emt 0:00:33]} a3 {[%emt 0:05:35]} 31. Rb1 {[%emt 0:00:41]} Bb2 {[%emt 0:02:40]} 32. b5 {[%emt 0:00:27]} e6 {[%emt 0:01:13]} 33. dxe6 {[%emt 0:00:28]} Bxe6 {[%emt 0:00:08]} 34. b6 {[%emt 0:00:35]} Ra8 {[%emt 0:01:19]} 35. Bxe6 {[%emt 0:00:28]} Kxe6 {[%emt 0:00:03]} 36. b7 {[%emt 0:00:09]} Rb8 {[%emt 0:00:12]} 37. Rbxb2 {[%emt 0:00:32]} axb2 {[%emt 0:00:06]} 38. Rxb2 {[%emt 0:00:02]} Kd7 {[%emt 0:00:31]} 39. Kd4 {[%emt 0:01:07]} Kc6 {[%emt 0:02:13]} 40. Rc2+ {[%emt 0:00:38]} Kxb7 {[%emt 0:00:57]} 41. Kd5 {[%emt 0:00:52]} Re8 {[%emt 0:02:14]} 42. Rc4 {[%emt 0:02:47]} g5 {[%emt 0:17:03]} 43. hxg5 {[%emt 0:03:03]} Re5+ {[%emt 0:00:04]} 44. Kxd6 {[%emt 0:00:05]} Rxg5 {[%emt 0:00:04]} 45. e5 Rg1 {[%emt 0:00:20]} 46. e6 {[%emt 0:04:42]} Rd1+ {[%emt 0:05:45]} 47. Ke5 {[%emt 0:00:06]} Re1+ {[%emt 0:00:18]} 48. Kf6 {[%emt 0:00:05]} Rf1+ {[%emt 0:00:23]} 49. Kg7 {[%emt 0:00:05]} Rg1+ {[%emt 0:01:59]} 50. Kf7 {[%emt 0:00:06]} Rf1+ {[%emt 0:00:07]} 51. Ke8 {[%emt 0:00:04]} Re1 {[%emt 0:01:44]} 52. e7 {[%emt 0:00:05]} h5 {[%emt 0:00:26]} 53. Rf4 {[%emt 0:01:08]} Kc6 1-0

[Event "Austrian Women Bundesliga 2023-24"]
[Site "Austria"]
[Date "2024.03.22"]
[Round "4.16"]
[White "Kejzar, Petra"]
[Black "Exler, Veronika"]
[Result "0-1"]
[ECO "D30"]
[WhiteElo "2049"]
[BlackElo "2157"]
[Annotator "RC"]
[PlyCount "66"]
[EventDate "2023.11.21"]
[EventType "team-tourn"]
[EventCountry "AUT"]
[SourceTitle "playchess.com"]
[Source "ChessBase"]
[SourceQuality "1"]
[TimeControl "40/5400+30:1800+30"]

1. d4 {[%emt 0:00:07]} d5 {[%emt 0:00:03]} 2. c4 {[%emt 0:00:05]} e6 {[%emt 0:00:02]} 3. Nf3 {[%emt 0:00:28]} Nf6 {[%emt 0:00:05]} 4. g3 {[%emt 0:00:15]} Bb4+ {[%emt 0:00:07]} 5. Nbd2 {[%emt 0:00:40]} dxc4 {[%emt 0:00:46]} 6. Bg2 {[%emt 0:00:34]} b5 {[%emt 0:04:31]} 7. O-O {[%emt 0:04:43]} c6 {[%emt 0:07:37]} 8. a4 {[%emt 0:04:39]} O-O {[%emt 0:17:12]} 9. b3 {[%emt 0:12:37]} cxb3 {[%emt 0:15:17]} 10. Nxb3 {[%emt 0:07:38]} Bc3 {[%emt 0:06:18]} 11. Rb1 {[%emt 0:06:38]} a5 {[%emt 0:06:04]} 12. Bg5 {[%emt 0:09:54]} b4 {[%emt 0:08:24]} 13. Ne5 {[%emt 0:06:06]} h6 {[%emt 0:06:28]} 14. Bxf6 {[%emt 0:10:00]} gxf6 {[%emt 0:06:18]} 15. Ng4 {[%emt 0:14:50]} h5 {[%emt 0:06:48]} 16. Ne3 {[%emt 0:00:29]} h4 {[%emt 0:06:37]} 17. gxh4 {[%emt 0:09:35]} f5 {[%emt 0:00:11]} 18. f4 {[%emt 0:00:38]} Qxh4 {[%emt 0:00:50]} 19. Rf3 {[%emt 0:00:20]} Rd8 {[%emt 0:00:57]} 20. Nc4 {[%emt 0:03:51]} Ra7 {[%emt 0:01:26]} 21. Ne5 {[%emt 0:00:18]} c5 {[%emt 0:01:13]} 22. Nxc5 {[%emt 0:03:48]} Bxd4+ {[%emt 0:01:44]} 23. Kh1 {[%emt 0:00:34]} Bxe5 {[%emt 0:00:18]} 24. Qg1 {[%emt 0:01:01]} Bd4 {[%emt 0:01:52]} 25. Qc1 {[%emt 0:00:02]} Nd7 {[%emt 0:00:55]} 26. Nb3 {[%emt 0:01:14]} Bc3 {[%emt 0:00:20]} 27. Qe3 {[%emt 0:00:37]} Ra6 {[%emt 0:00:40]} 28. Rg1 {[%emt 0:01:03]} Nf8 {[%emt 0:00:37]} 29. Rh3 {[%emt 0:01:13]} Qe7 {[%emt 0:00:34]} 30. Bb7+ {[%emt 0:00:32]} Ng6 {[%emt 0:00:06]} 31. Bxa6 {[%emt 0:00:22]} Bxa6 {[%emt 0:00:15]} 32. Qg3 {[%emt 0:00:30]} Bb7+ {[%emt 0:00:09]} 33. Rg2 {[%emt 0:00:47]} Rd1+ {[%emt 0:00:15]} 0-1